[Event "*** Titled Tuesday Blitz"]
[Site "Chess.com"]
[Date "2021.02.16"]
[Round "3"]
[White "Moultino06"]
[Black "EdmundPlayer"]
[Result "1-0"]
[WhiteElo "2486"]
[BlackElo "2185"]
[TimeControl "180+1"]
[EndTime "10:32:09 PST"]
[Termination "Moultino06 won by checkmate"]

1. d4 {[%clk 0:03:00.9]} 1... d5 {[%clk 0:02:58.2]} 2. c4 {[%clk 0:03:00.9]}
2... dxc4 {[%clk 0:02:58.7]} 3. Nf3 {[%clk 0:03:01]} 3... Nf6 {[%clk 0:02:58.4]}
4. e3 {[%clk 0:02:53.8]} 4... Bg4 {[%clk 0:02:58.3]} 5. Bxc4 {[%clk 0:02:51.1]}
5... e6 {[%clk 0:02:58]} 6. h3 {[%clk 0:02:50.9]} 6... Bh5 {[%clk 0:02:57.5]} 7.
Nc3 {[%clk 0:02:49.1]} 7... a6 {[%clk 0:02:56.3]} 8. g4 {[%clk 0:02:42.2]} 8...
Bg6 {[%clk 0:02:55.3]} 9. Ne5 {[%clk 0:02:42.8]} 9... Nbd7 {[%clk 0:02:55.1]}
10. Nxg6 {[%clk 0:02:39.1]} 10... hxg6 {[%clk 0:02:56]} 11. Qf3 {[%clk
0:02:38.6]} 11... c6 {[%clk 0:02:51.2]} 12. Bd2 {[%clk 0:02:37.7]} 12... Qc7
{[%clk 0:02:33.8]} 13. g5 {[%clk 0:02:07.1]} 13... Nd5 {[%clk 0:02:26.9]} 14.
O-O-O {[%clk 0:01:59.1]} 14... Be7 {[%clk 0:02:22.8]} 15. h4 {[%clk 0:01:52.2]}
15... Nxc3 {[%clk 0:01:49.1]} 16. Bxc3 {[%clk 0:01:51.3]} 16... Nb6 {[%clk
0:01:48.1]} 17. Ba5 {[%clk 0:01:47.2]} 17... Bd8 {[%clk 0:01:30.1]} 18. h5
{[%clk 0:01:43.5]} 18... Rxh5 {[%clk 0:01:02.4]} 19. Rxh5 {[%clk 0:01:41.4]}
19... gxh5 {[%clk 0:01:03.3]} 20. Qxh5 {[%clk 0:01:34.7]} 20... Qe7 {[%clk
0:01:03.1]} 21. Bxb6 {[%clk 0:00:36.8]} 21... Bxb6 {[%clk 0:01:03]} 22. Bxe6
{[%clk 0:00:36.6]} 22... g6 {[%clk 0:00:30.2]} 23. Qh8+ {[%clk 0:00:33.5]} 23...
Qf8 {[%clk 0:00:29.9]} 24. Qxf8+ {[%clk 0:00:22.2]} 24... Kxf8 {[%clk
0:00:30.8]} 25. Bg4 {[%clk 0:00:18.9]} 25... Ke7 {[%clk 0:00:24.4]} 26. Kd2
{[%clk 0:00:19.3]} 26... Rh8 {[%clk 0:00:23]} 27. Ke2 {[%clk 0:00:19.9]} 27...
Rh4 {[%clk 0:00:21.4]} 28. Bc8 {[%clk 0:00:20]} 28... Rh5 {[%clk 0:00:18.6]} 29.
Bxb7 {[%clk 0:00:20.5]} 29... Rxg5 {[%clk 0:00:18.8]} 30. Bxc6 {[%clk 0:00:21]}
30... Ra5 {[%clk 0:00:18.3]} 31. a3 {[%clk 0:00:20.8]} 31... Bc7 {[%clk
0:00:17.9]} 32. Rd3 {[%clk 0:00:19.5]} 32... Rh5 {[%clk 0:00:14.8]} 33. b4
{[%clk 0:00:19.9]} 33... Rh2 {[%clk 0:00:14.4]} 34. Bf3 {[%clk 0:00:20.4]} 34...
Bg3 {[%clk 0:00:14.1]} 35. Kd1 {[%clk 0:00:18.6]} 35... Rxf2 {[%clk 0:00:14.8]}
36. Be2 {[%clk 0:00:18.1]} 36... Rg2 {[%clk 0:00:14.3]} 37. e4 {[%clk
0:00:18.1]} 37... Rg1+ {[%clk 0:00:15.2]} 38. Kc2 {[%clk 0:00:17.1]} 38... Ra1
{[%clk 0:00:16.1]} 39. Kb3 {[%clk 0:00:16.6]} 39... Rb1+ {[%clk 0:00:15.9]} 40.
Ka4 {[%clk 0:00:16.6]} 40... Bc7 {[%clk 0:00:14.9]} 41. Rc3 {[%clk 0:00:16]}
41... Kd8 {[%clk 0:00:13.7]} 42. Bxa6 {[%clk 0:00:15.3]} 42... Rd1 {[%clk
0:00:12.9]} 43. d5 {[%clk 0:00:15.4]} 43... Re1 {[%clk 0:00:13.1]} 44. Bd3
{[%clk 0:00:14.9]} 44... Re3 {[%clk 0:00:12.9]} 45. Kb5 {[%clk 0:00:14.8]} 45...
g5 {[%clk 0:00:13]} 46. Kc4 {[%clk 0:00:12.8]} 46... g4 {[%clk 0:00:12.5]} 47.
Kd4 {[%clk 0:00:13.2]} 47... Rf3 {[%clk 0:00:09.4]} 48. Be2 {[%clk 0:00:11.9]}
48... Rxc3 {[%clk 0:00:07.4]} 49. Kxc3 {[%clk 0:00:11.8]} 49... g3 {[%clk
0:00:07.8]} 50. Bf3 {[%clk 0:00:11.9]} 50... Be5+ {[%clk 0:00:08.6]} 51. Kc4
{[%clk 0:00:12]} 51... Kc7 {[%clk 0:00:09.4]} 52. a4 {[%clk 0:00:12]} 52... Kb6
{[%clk 0:00:09]} 53. a5+ {[%clk 0:00:12.4]} 53... Ka6 {[%clk 0:00:08.7]} 54. Kc5
{[%clk 0:00:12.9]} 54... f6 {[%clk 0:00:06.1]} 55. Kc6 {[%clk 0:00:12.9]} 55...
Ka7 {[%clk 0:00:05]} 56. Bg2 {[%clk 0:00:12.3]} 56... Bc3 {[%clk 0:00:05.1]} 57.
Kc5 {[%clk 0:00:12.6]} 57... Bd2 {[%clk 0:00:05]} 58. d6 {[%clk 0:00:12.4]}
58... Kb7 {[%clk 0:00:05.2]} 59. a6+ {[%clk 0:00:11.3]} 59... Kc8 {[%clk
0:00:04.6]} 60. b5 {[%clk 0:00:11]} 60... Be3+ {[%clk 0:00:05.1]} 61. Kc6 {[%clk
0:00:11.4]} 61... Ba7 {[%clk 0:00:04.5]} 62. b6 {[%clk 0:00:11.8]} 62... Bb8
{[%clk 0:00:05.1]} 63. a7 {[%clk 0:00:11.2]} 63... Bxa7 {[%clk 0:00:05.1]} 64.
bxa7 {[%clk 0:00:11.1]} 64... f5 {[%clk 0:00:06]} 65. a8=Q# {[%clk 0:00:11.5]}
1-0

[Event "*** Titled Tuesday Blitz"]
[Site "Chess.com"]
[Date "2021.02.16"]
[Round "3"]
[White "kobemagic"]
[Black "DenishevM"]
[Result "0-1"]
[WhiteElo "2384"]
[BlackElo "2593"]
[TimeControl "180+1"]
[EndTime "10:32:12 PST"]
[Termination "DenishevM won on time"]

1. c4 {[%clk 0:03:00.9]} 1... c6 {[%clk 0:02:57.9]} 2. g3 {[%clk 0:03:00.9]}
2... d5 {[%clk 0:02:58.2]} 3. Bg2 {[%clk 0:03:01]} 3... Nf6 {[%clk 0:02:58.7]}
4. Nf3 {[%clk 0:03:00.8]} 4... Bf5 {[%clk 0:02:58.8]} 5. Qb3 {[%clk 0:02:59.3]}
5... Qc8 {[%clk 0:02:53.2]} 6. cxd5 {[%clk 0:02:57.6]} 6... cxd5 {[%clk
0:02:49.7]} 7. O-O {[%clk 0:02:57.1]} 7... e6 {[%clk 0:02:49]} 8. d3 {[%clk
0:02:54.3]} 8... Nc6 {[%clk 0:02:47.2]} 9. Nc3 {[%clk 0:02:53.9]} 9... Be7
{[%clk 0:02:42.6]} 10. Re1 {[%clk 0:02:42.8]} 10... O-O {[%clk 0:02:40.7]} 11.
e4 {[%clk 0:02:42.6]} 11... dxe4 {[%clk 0:02:40.9]} 12. dxe4 {[%clk 0:02:43.5]}
12... Bg4 {[%clk 0:02:37.9]} 13. Be3 {[%clk 0:02:34.5]} 13... Na5 {[%clk
0:02:15.3]} 14. Qa4 {[%clk 0:01:43.4]} 14... Nc4 {[%clk 0:02:09.4]} 15. e5
{[%clk 0:01:41.5]} 15... Nd7 {[%clk 0:01:58.8]} 16. Bc1 {[%clk 0:01:11.7]} 16...
Ndb6 {[%clk 0:01:32.3]} 17. Qb3 {[%clk 0:01:06.2]} 17... Na5 {[%clk 0:01:19.6]}
18. Qb5 {[%clk 0:01:00.2]} 18... Nc6 {[%clk 0:01:16.8]} 19. Bf4 {[%clk
0:00:55.8]} 19... Rd8 {[%clk 0:01:06.2]} 20. Rad1 {[%clk 0:00:29.6]} 20... Bxf3
{[%clk 0:01:03.4]} 21. Bxf3 {[%clk 0:00:29.2]} 21... Nd4 {[%clk 0:01:03.1]} 22.
Qd3 {[%clk 0:00:23.5]} 22... Nc4 {[%clk 0:00:53]} 23. Qe4 {[%clk 0:00:17.6]}
23... Nxf3+ {[%clk 0:00:46.6]} 24. Qxf3 {[%clk 0:00:18.5]} 24... Nxb2 {[%clk
0:00:46.9]} 25. Rxd8+ {[%clk 0:00:15.6]} 25... Bxd8 {[%clk 0:00:44.8]} 26. Rb1
{[%clk 0:00:16.5]} 26... Ba5 {[%clk 0:00:23.2]} 27. Rxb2 {[%clk 0:00:15.2]}
27... Qxc3 {[%clk 0:00:23.3]} 28. Qxc3 {[%clk 0:00:13.6]} 28... Bxc3 {[%clk
0:00:24.2]} 29. Rxb7 {[%clk 0:00:14.5]} 29... h6 {[%clk 0:00:23.9]} 30. a4
{[%clk 0:00:13.8]} 30... a5 {[%clk 0:00:24.2]} 31. Rb5 {[%clk 0:00:13.3]} 31...
Bb4 {[%clk 0:00:22.8]} 32. Be3 {[%clk 0:00:12.1]} 32... Bc3 {[%clk 0:00:18.9]}
33. Kg2 {[%clk 0:00:10.5]} 33... g5 {[%clk 0:00:16.7]} 34. Bb6 {[%clk 0:00:10]}
34... Kg7 {[%clk 0:00:16.4]} 35. f4 {[%clk 0:00:10.2]} 35... Kg6 {[%clk
0:00:16.3]} 36. Kf3 {[%clk 0:00:10.1]} 36... h5 {[%clk 0:00:15.9]} 37. h3 {[%clk
0:00:09.6]} 37... gxf4 {[%clk 0:00:15.1]} 38. gxf4 {[%clk 0:00:09.5]} 38... Kf5
{[%clk 0:00:15.5]} 39. Be3 {[%clk 0:00:10]} 39... Rd8 {[%clk 0:00:14.1]} 40. Rb7
{[%clk 0:00:10.2]} 40... Kg6 {[%clk 0:00:13.6]} 41. Rb3 {[%clk 0:00:08.8]} 41...
Bb4 {[%clk 0:00:13.6]} 42. Ke4 {[%clk 0:00:08.7]} 42... Rd1 {[%clk 0:00:12.9]}
43. Rb2 {[%clk 0:00:08.1]} 43... Ra1 {[%clk 0:00:12.6]} 44. Rg2+ {[%clk
0:00:08.5]} 44... Kh7 {[%clk 0:00:13.2]} 45. f5 {[%clk 0:00:08.1]} 45... Rxa4
{[%clk 0:00:11.9]} 46. f6 {[%clk 0:00:07.2]} 46... Bc5+ {[%clk 0:00:08.5]} 47.
Kf3 {[%clk 0:00:05.7]} 47... Ra3 {[%clk 0:00:08.8]} 48. Rg7+ {[%clk 0:00:05.3]}
48... Kh8 {[%clk 0:00:09.1]} 49. Rxf7 {[%clk 0:00:05.9]} 49... Rxe3+ {[%clk
0:00:09.5]} 50. Kf4 {[%clk 0:00:06.8]} 50... Re1 {[%clk 0:00:09.7]} 51. Rc7
{[%clk 0:00:06.3]} 51... Bb4 {[%clk 0:00:09.8]} 52. Rc8+ {[%clk 0:00:06.3]}
52... Kh7 {[%clk 0:00:09.9]} 53. Rc7+ {[%clk 0:00:06.9]} 53... Kh6 {[%clk
0:00:10.3]} 54. Kf3 {[%clk 0:00:06]} 54... Rf1+ {[%clk 0:00:10.5]} 55. Ke2
{[%clk 0:00:05.1]} 55... Rf5 {[%clk 0:00:10.5]} 56. Rf7 {[%clk 0:00:03.6]} 56...
Rxe5+ {[%clk 0:00:10.8]} 0-1

[Event "*** Titled Tuesday Blitz"]
[Site "Chess.com"]
[Date "2021.02.16"]
[Round "3"]
[White "lamomiablanca"]
[Black "jacky72"]
[Result "0-1"]
[WhiteElo "2297"]
[BlackElo "2701"]
[TimeControl "180+1"]
[EndTime "10:32:26 PST"]
[Termination "jacky72 won by checkmate"]

1. e4 {[%clk 0:03:00.9]} 1... e5 {[%clk 0:03:00.1]} 2. Nf3 {[%clk 0:03:00.2]}
2... Nc6 {[%clk 0:03:00.6]} 3. Nc3 {[%clk 0:02:59.6]} 3... Nf6 {[%clk
0:03:00.4]} 4. d4 {[%clk 0:02:59.8]} 4... exd4 {[%clk 0:03:01.3]} 5. Nxd4 {[%clk
0:02:59.4]} 5... Bb4 {[%clk 0:03:01.7]} 6. Nxc6 {[%clk 0:02:59.6]} 6... bxc6
{[%clk 0:03:02.6]} 7. Bd3 {[%clk 0:02:59.8]} 7... d5 {[%clk 0:03:03.3]} 8. exd5
{[%clk 0:02:59.4]} 8... O-O {[%clk 0:03:03.8]} 9. O-O {[%clk 0:02:59.3]} 9...
cxd5 {[%clk 0:03:04.5]} 10. h3 {[%clk 0:02:59.7]} 10... h6 {[%clk 0:03:02.7]}
11. Qf3 {[%clk 0:02:58.4]} 11... c6 {[%clk 0:03:01.3]} 12. Bf4 {[%clk
0:02:58.3]} 12... Bd6 {[%clk 0:03:00.5]} 13. Rfe1 {[%clk 0:02:50.6]} 13... Rb8
{[%clk 0:03:00.5]} 14. b3 {[%clk 0:02:50.5]} 14... Be6 {[%clk 0:02:55.1]} 15.
Ne2 {[%clk 0:02:39.9]} 15... c5 {[%clk 0:02:53.3]} 16. c3 {[%clk 0:02:36.1]}
16... Re8 {[%clk 0:02:52.1]} 17. Rad1 {[%clk 0:02:28.9]} 17... Bxf4 {[%clk
0:02:39]} 18. Nxf4 {[%clk 0:02:28.7]} 18... Qa5 {[%clk 0:02:39.6]} 19. Re2
{[%clk 0:02:21.8]} 19... c4 {[%clk 0:02:31.8]} 20. b4 {[%clk 0:02:10.5]} 20...
Qc7 {[%clk 0:02:12.4]} 21. Bc2 {[%clk 0:02:07.7]} 21... Rbd8 {[%clk 0:02:09.9]}
22. Red2 {[%clk 0:01:58]} 22... Qe5 {[%clk 0:02:05.6]} 23. Ne2 {[%clk
0:01:54.5]} 23... Rb8 {[%clk 0:01:54.4]} 24. Nd4 {[%clk 0:01:53]} 24... Bd7
{[%clk 0:01:54.4]} 25. Re2 {[%clk 0:01:45.2]} 25... Qg5 {[%clk 0:01:48.8]} 26.
Rde1 {[%clk 0:01:39.1]} 26... Rxe2 {[%clk 0:01:48.4]} 27. Rxe2 {[%clk
0:01:35.9]} 27... Re8 {[%clk 0:01:45.5]} 28. Rxe8+ {[%clk 0:01:24.1]} 28... Bxe8
{[%clk 0:01:46.4]} 29. Qe3 {[%clk 0:01:21.7]} 29... Qxe3 {[%clk 0:01:37.4]} 30.
fxe3 {[%clk 0:01:21.3]} 30... Bd7 {[%clk 0:01:38.3]} 31. a4 {[%clk 0:01:19.2]}
31... Kf8 {[%clk 0:01:37.9]} 32. a5 {[%clk 0:01:18.7]} 32... Ke7 {[%clk
0:01:38.2]} 33. Kf2 {[%clk 0:01:15.9]} 33... Kd6 {[%clk 0:01:38.3]} 34. Kf3
{[%clk 0:01:13]} 34... g6 {[%clk 0:01:37.8]} 35. g4 {[%clk 0:00:32.1]} 35... Ne8
{[%clk 0:01:32.9]} 36. Kg3 {[%clk 0:00:29.2]} 36... Nc7 {[%clk 0:01:30.6]} 37.
Kf3 {[%clk 0:00:25.6]} 37... Ke5 {[%clk 0:01:30.5]} 38. Kg3 {[%clk 0:00:25]}
38... Ne8 {[%clk 0:01:26.6]} 39. Kf3 {[%clk 0:00:24.4]} 39... Nd6 {[%clk
0:01:27.1]} 40. Bb1 {[%clk 0:00:21.1]} 40... Ba4 {[%clk 0:01:25.8]} 41. Kf2
{[%clk 0:00:13.4]} 41... Kf6 {[%clk 0:01:14.5]} 42. Kf3 {[%clk 0:00:13.2]} 42...
Bd1+ {[%clk 0:01:12.5]} 43. Kf2 {[%clk 0:00:13.2]} 43... Ba4 {[%clk 0:01:10.4]}
44. Kf3 {[%clk 0:00:13.1]} 44... Ke7 {[%clk 0:01:10.6]} 45. Kf2 {[%clk 0:00:13]}
45... Kd7 {[%clk 0:01:06]} 46. Kf3 {[%clk 0:00:12.9]} 46... Ne8 {[%clk
0:01:05.9]} 47. Kf2 {[%clk 0:00:13.3]} 47... Kd6 {[%clk 0:01:06.2]} 48. Kf3
{[%clk 0:00:13.5]} 48... Nf6 {[%clk 0:01:06.7]} 49. Kf4 {[%clk 0:00:13]} 49...
Nd7 {[%clk 0:01:04.2]} 50. Kf3 {[%clk 0:00:12.4]} 50... Ne5+ {[%clk 0:00:58.1]}
51. Ke2 {[%clk 0:00:12.7]} 51... Nd7 {[%clk 0:00:56]} 52. Kf3 {[%clk 0:00:12.7]}
52... Ke5 {[%clk 0:00:55.3]} 53. Ke2 {[%clk 0:00:12.6]} 53... Nf6 {[%clk
0:00:55.8]} 54. Nf3+ {[%clk 0:00:12.8]} 54... Kd6 {[%clk 0:00:55.8]} 55. Nd4
{[%clk 0:00:13.7]} 55... h5 {[%clk 0:00:56.2]} 56. g5 {[%clk 0:00:12.6]} 56...
Nd7 {[%clk 0:00:54.2]} 57. h4 {[%clk 0:00:12]} 57... Ne5 {[%clk 0:00:53.8]} 58.
e4 {[%clk 0:00:11.7]} 58... Nd7 {[%clk 0:00:48.9]} 59. Ke3 {[%clk 0:00:10.9]}
59... Ke5 {[%clk 0:00:49.2]} 60. Nf3+ {[%clk 0:00:10.7]} 60... Kd6 {[%clk
0:00:49.1]} 61. Kd4 {[%clk 0:00:10.4]} 61... Bc6 {[%clk 0:00:42.8]} 62. e5+
{[%clk 0:00:08.5]} 62... Ke6 {[%clk 0:00:37.4]} 63. Bc2 {[%clk 0:00:08.6]} 63...
a6 {[%clk 0:00:34.2]} 64. Bb1 {[%clk 0:00:08.4]} 64... Ke7 {[%clk 0:00:31.4]}
65. Bc2 {[%clk 0:00:08.4]} 65... Kd8 {[%clk 0:00:30.5]} 66. Bd1 {[%clk
0:00:07.5]} 66... Kc7 {[%clk 0:00:30.6]} 67. Be2 {[%clk 0:00:07.6]} 67... Nf8
{[%clk 0:00:31]} 68. Ke3 {[%clk 0:00:06.9]} 68... Ne6 {[%clk 0:00:30.9]} 69. Nd4
{[%clk 0:00:07.3]} 69... Nf8 {[%clk 0:00:30]} 70. Bf3 {[%clk 0:00:07.6]} 70...
Nd7 {[%clk 0:00:30]} 71. Kf4 {[%clk 0:00:07.8]} 71... Nf8 {[%clk 0:00:29.5]} 72.
Ke3 {[%clk 0:00:07.6]} 72... Bb7 {[%clk 0:00:28.3]} 73. Bg2 {[%clk 0:00:07.7]}
73... Nd7 {[%clk 0:00:26.3]} 74. e6 {[%clk 0:00:07.4]} 74... fxe6 {[%clk
0:00:24.6]} 75. Nxe6+ {[%clk 0:00:08.3]} 75... Kd6 {[%clk 0:00:24.9]} 76. Nf4
{[%clk 0:00:08.2]} 76... Ne5 {[%clk 0:00:25.1]} 77. Kd4 {[%clk 0:00:06.6]} 77...
Nc6+ {[%clk 0:00:25.4]} 78. Ke3 {[%clk 0:00:06.7]} 78... Ne7 {[%clk 0:00:26]}
79. Kd4 {[%clk 0:00:06.7]} 79... Nf5# {[%clk 0:00:26.4]} 0-1

[Event "*** Titled Tuesday Blitz"]
[Site "Chess.com"]
[Date "2021.02.16"]
[Round "3"]
[White "Kiborg95"]
[Black "Nozdrachev_Leonid"]
[Result "1/2-1/2"]
[WhiteElo "2733"]
[BlackElo "2526"]
[TimeControl "180+1"]
[EndTime "10:32:28 PST"]
[Termination "Game drawn by repetition"]

1. e4 {[%clk 0:03:00.9]} 1... d6 {[%clk 0:03:00.1]} 2. d4 {[%clk 0:02:59.5]}
2... Nf6 {[%clk 0:03:00.3]} 3. Nc3 {[%clk 0:03:00.1]} 3... e5 {[%clk 0:03:00.4]}
4. Nf3 {[%clk 0:03:00.6]} 4... Nbd7 {[%clk 0:02:59.8]} 5. g4 {[%clk 0:03:00.8]}
5... g6 {[%clk 0:02:57.5]} 6. g5 {[%clk 0:02:58.4]} 6... Nh5 {[%clk 0:02:57.1]}
7. Be3 {[%clk 0:02:58.9]} 7... Bg7 {[%clk 0:02:56.7]} 8. dxe5 {[%clk 0:02:59.5]}
8... Nxe5 {[%clk 0:02:55.2]} 9. Nxe5 {[%clk 0:02:59.2]} 9... Bxe5 {[%clk
0:02:51.7]} 10. Qd2 {[%clk 0:02:58.8]} 10... O-O {[%clk 0:02:47.5]} 11. Be2
{[%clk 0:02:55.4]} 11... c6 {[%clk 0:02:46.4]} 12. O-O-O {[%clk 0:02:51.4]}
12... Qa5 {[%clk 0:02:44.1]} 13. Bxh5 {[%clk 0:02:35.6]} 13... gxh5 {[%clk
0:02:42.1]} 14. f4 {[%clk 0:02:16.3]} 14... Bxc3 {[%clk 0:02:32.6]} 15. Qxc3
{[%clk 0:02:17.2]} 15... Qxc3 {[%clk 0:02:32.3]} 16. bxc3 {[%clk 0:02:18.1]}
16... Bg4 {[%clk 0:02:26.8]} 17. Rxd6 {[%clk 0:02:13.1]} 17... Bf3 {[%clk
0:02:26.5]} 18. Re1 {[%clk 0:02:02.9]} 18... Bxe4 {[%clk 0:02:24.9]} 19. Rd7
{[%clk 0:02:00.3]} 19... b6 {[%clk 0:02:16.8]} 20. Bd4 {[%clk 0:00:32.2]} 20...
Bf5 {[%clk 0:02:06.7]} 21. Rc7 {[%clk 0:00:27.2]} 21... c5 {[%clk 0:02:05.5]}
22. Bf6 {[%clk 0:00:27.6]} 22... h4 {[%clk 0:01:33.8]} 23. Re5 {[%clk
0:00:26.9]} 23... Bg4 {[%clk 0:01:31.3]} 24. Ree7 {[%clk 0:00:25.2]} 24... Be6
{[%clk 0:01:24.4]} 25. Rxa7 {[%clk 0:00:21.9]} 25... Bxa2 {[%clk 0:01:16.4]} 26.
Rxa8 {[%clk 0:00:21.9]} 26... Rxa8 {[%clk 0:01:15.3]} 27. Rb7 {[%clk 0:00:22.2]}
27... h6 {[%clk 0:01:07.7]} 28. gxh6 {[%clk 0:00:21.1]} 28... h3 {[%clk
0:01:04.2]} 29. Rxb6 {[%clk 0:00:21]} 29... Be6 {[%clk 0:01:01.8]} 30. Kb2
{[%clk 0:00:18.3]} 30... Kh7 {[%clk 0:00:53]} 31. Be5 {[%clk 0:00:15]} 31... Rg8
{[%clk 0:00:47.4]} 32. Bg7 {[%clk 0:00:14.4]} 32... Rd8 {[%clk 0:00:45.6]} 33.
f5 {[%clk 0:00:12.1]} 33... Bxf5 {[%clk 0:00:43.7]} 34. Rf6 {[%clk 0:00:12.5]}
34... Bg6 {[%clk 0:00:41.2]} 35. Rf3 {[%clk 0:00:11.9]} 35... Rd2 {[%clk
0:00:37.9]} 36. Rxh3 {[%clk 0:00:12.3]} 36... Rxc2+ {[%clk 0:00:38.3]} 37. Kb3
{[%clk 0:00:12.6]} 37... Re2 {[%clk 0:00:33.2]} 38. Kc4 {[%clk 0:00:11.9]} 38...
f5 {[%clk 0:00:30.1]} 39. Kxc5 {[%clk 0:00:11.8]} 39... f4 {[%clk 0:00:30.2]}
40. Rh4 {[%clk 0:00:09.5]} 40... f3 {[%clk 0:00:29]} 41. Bd4 {[%clk 0:00:09]}
41... Be4 {[%clk 0:00:16.7]} 42. c4 {[%clk 0:00:08.8]} 42... Bg6 {[%clk
0:00:11.3]} 43. Rf4 {[%clk 0:00:08.1]} 43... Bh5 {[%clk 0:00:09.7]} 44. Rf6
{[%clk 0:00:08.3]} 44... Bg6 {[%clk 0:00:05.1]} 45. Rxf3 {[%clk 0:00:07.8]}
45... Kxh6 {[%clk 0:00:05]} 46. Be5 {[%clk 0:00:05.8]} 46... Rxe5+ {[%clk
0:00:04.1]} 47. Kd4 {[%clk 0:00:05.8]} 47... Re2 {[%clk 0:00:04]} 48. Rc3 {[%clk
0:00:05.8]} 48... Rxh2 {[%clk 0:00:03.1]} 49. c5 {[%clk 0:00:06.4]} 49... Rh4+
{[%clk 0:00:03]} 50. Ke5 {[%clk 0:00:06.6]} 50... Rh5+ {[%clk 0:00:02.8]} 51.
Kd6 {[%clk 0:00:06.9]} 51... Rf5 {[%clk 0:00:02.6]} 52. c6 {[%clk 0:00:07.2]}
52... Rf6+ {[%clk 0:00:02.9]} 53. Ke7 {[%clk 0:00:06.7]} 53... Rf7+ {[%clk
0:00:03.1]} 54. Ke6 {[%clk 0:00:07.2]} 54... Rf8 {[%clk 0:00:02.6]} 55. c7
{[%clk 0:00:06.9]} 55... Bf5+ {[%clk 0:00:02.4]} 56. Ke5 {[%clk 0:00:07.2]}
56... Bg4 {[%clk 0:00:01.6]} 57. Rd3 {[%clk 0:00:05.4]} 57... Kg5 {[%clk
0:00:01.8]} 58. Rd8 {[%clk 0:00:05.4]} 58... Rf5+ {[%clk 0:00:01.2]} 59. Ke4
{[%clk 0:00:05.1]} 59... Rf2 {[%clk 0:00:01.7]} 60. Rg8+ {[%clk 0:00:04.1]}
60... Kh6 {[%clk 0:00:01.8]} 61. Rxg4 {[%clk 0:00:04.5]} 61... Rc2 {[%clk
0:00:02.3]} 62. Rh4+ {[%clk 0:00:04.3]} 62... Kg6 {[%clk 0:00:02.5]} 63. Rg4+
{[%clk 0:00:04.6]} 63... Kh6 {[%clk 0:00:02.9]} 64. Rf4 {[%clk 0:00:05.1]} 64...
Rxc7 {[%clk 0:00:02.2]} 65. Kf3 {[%clk 0:00:05.9]} 65... Kg5 {[%clk 0:00:02.2]}
66. Re4 {[%clk 0:00:04.6]} 66... Kg6 {[%clk 0:00:02.4]} 67. Re3 {[%clk 0:00:05]}
67... Kg5 {[%clk 0:00:02.7]} 68. Re5+ {[%clk 0:00:05.2]} 68... Kg6 {[%clk
0:00:02.8]} 69. Re4 {[%clk 0:00:05.9]} 69... Kg5 {[%clk 0:00:03.1]} 70. Re3
{[%clk 0:00:06.5]} 70... Kg6 {[%clk 0:00:03.4]} 71. Re4 {[%clk 0:00:07.1]} 71...
Kg5 {[%clk 0:00:03.8]} 72. Re3 {[%clk 0:00:07.7]} 72... Kg6 {[%clk 0:00:04.2]}
73. Re4 {[%clk 0:00:08.3]} 1/2-1/2